lending/lending_fUSD_20241214
["ID","MTS","AMOUNT","RATE_DAILY","PERIOD"]
[345309909,1734144670648,-171.02822347,0.00021248,3]
[345309910,1734144670658,-11722.45,0.00021248,3]
[345309911,1734144670668,-11722.45,0.00021248,3]
[345309912,1734144670677,-11722.45,0.00021248,3]
[345309913,1734144670687,-11722.45,0.00021248,3]
[345309914,1734144670696,-11722.66973753,0.00021248,3]
[345309915,1734144670705,-500.0,0.00021248,3]
[345309916,1734144670715,-500.0,0.00021248,3]
[345309917,1734144670725,-500.0,0.00021248,3]
[345309918,1734144670735,-500.0,0.00021248,3]
[345309919,1734144670744,-500.0,0.00021248,3]
[345309920,1734144670754,-500.0,0.00021248,3]
[345309921,1734144670763,-455.2740274,0.00021248,3]
[345309922,1734144670773,-2934.66,0.00021248,3]
[345309923,1734144670783,-2934.66,0.00021248,3]
[345309924,1734144670792,-2934.66,0.00021248,3]
[345309925,1734144670802,-2934.66,0.00021248,3]
[345309926,1734144670812,-2934.66,0.00021248,3]
[345309927,1734144670821,-2934.66,0.00021248,3]
[345309928,1734144670832,-2934.75063977,0.00021248,3]
[345309929,1734144670842,-813.27,0.00021248,3]
[345309930,1734144670851,-813.27,0.00021248,3]
[345309931,1734144670861,-813.27,0.00021248,3]
[345309932,1734144670871,-813.27,0.00021248,3]
[345309933,1734144670880,-813.29468524,0.00021248,3]
[345309934,1734144670890,-500.0,0.00021248,3]
[345309935,1734144670899,-331.09604776,0.00021248,3]
[345309936,1734144670909,-647.25,0.00021248,3]
[345309937,1734144670919,-647.25,0.00021248,3]
[345309938,1734144670928,-647.25,0.00021248,3]
[345309939,1734144670937,-647.25,0.00021248,3]
[345309940,1734144670946,-647.29533236,0.00021248,3]
[345309941,1734144670955,-853.88,0.00021248,3]
[345309942,1734144670965,-853.88,0.00021248,3]
[345309943,1734144670975,-853.88,0.00021248,3]
[345309944,1734144670984,-853.88,0.00021248,3]
[345309945,1734144670995,-854.02668877,0.00021248,3]
[345309946,1734144671005,-2057.32,0.00021248,3]
[345309947,1734144671015,-2057.32,0.00021248,3]
[345309948,1734144671025,-2057.32,0.00021248,3]
[345309949,1734144671034,-2057.32,0.00021248,3]
[345309950,1734144671044,-2057.54943263,0.00021248,3]
[345309951,1734144671054,-500.0,0.00021249,3]
[345309952,1734144671063,-988.2,0.00021249,3]
[345309953,1734144671073,-500.0,0.00021249,3]
[345309954,1734144671084,-666.21411,0.00021249,9]
[345309955,1734144671094,-666.21411,0.00021249,8]
[345309956,1734144671103,-666.21411,0.00021249,7]
[345309957,1734144671112,-666.21411,0.00021249,6]
[345309958,1734144671122,-666.21411,0.00021249,5]
[345309959,1734144671131,-666.21411,0.00021249,4]
[345309960,1734144671140,-666.21411,0.00021249,3]
[345309961,1734144671150,-666.21411,0.00021249,2]
[345309962,1734144671160,-2003.45,0.00021249,3]
[345309963,1734144671169,-500.0,0.00021249,2]
[345309964,1734144671179,-1000.0,0.00021249,2]
[345309965,1734144671188,-644.96,0.00021249,3]
[345309966,1734144671197,-644.96,0.00021249,3]
[345309967,1734144671206,-644.96,0.00021249,3]
[345309968,1734144671216,-644.96,0.00021249,3]
[345309969,1734144671225,-644.96,0.00021249,3]
[345309970,1734144671235,-644.96,0.00021249,3]
[345309971,1734144671245,-645.12961658,0.00021249,3]
[345309972,1734144671255,-777.99,0.00021249,3]
[345309973,1734144671264,-777.99,0.00021249,3]
[345309974,1734144671277,-777.99,0.00021249,3]
[345309975,1734144671286,-777.99,0.00021249,3]
[345309976,1734144671296,-777.99,0.00021249,3]
[345309977,1734144671306,-777.99,0.00021249,3]
[345309978,1734144671316,-778.10263353,0.00021249,3]
[345309979,1734144671325,-151.0,0.00021249,2]
[345309980,1734144671336,-151.0,0.00021249,2]
[345309981,1734144671345,-590.26,0.00021249,3]
[345309982,1734144671357,-590.26,0.00021249,3]
[345309983,1734144671369,-590.26,0.00021249,3]
[345309984,1734144671379,-590.26,0.00021249,3]
[345309985,1734144671389,-590.26,0.00021249,3]
[345309986,1734144671398,-590.26,0.00021249,3]
[345309987,1734144671407,-590.44741236,0.00021249,3]
[345309988,1734144671418,-500.0,0.00021249,3]
[345309989,1734144671428,-500.0,0.00021249,3]
[345309990,1734144671438,-500.0,0.00021249,3]
[345309991,1734144671448,-500.0,0.00021249,3]
[345309992,1734144671458,-483.2797142,0.00021249,3]
[345309993,1734144671467,-500.0,0.00021249,3]
[345309994,1734144671477,-500.0,0.00021249,3]
[345309995,1734144671486,-500.0,0.00021249,3]
[345309996,1734144671495,-500.0,0.00021249,3]
[345309997,1734144671505,-506.08,0.00021249,3]
[345309998,1734144671515,-151.0,0.00021249,2]
[345309999,1734144671525,-506.96,0.00021249,3]
[345310000,1734144671535,-506.96,0.00021249,3]
[345310001,1734144671545,-506.96,0.00021249,3]
[345310002,1734144671554,-506.96,0.00021249,3]
[345310003,1734144671564,-506.96,0.00021249,3]
[345310004,1734144671574,-506.96,0.00021249,3]
[345310005,1734144671584,-507.19497835,0.00021249,3]
[345310006,1734144671593,-500.0,0.00021249,3]
[345310007,1734144671602,-500.0,0.00021249,3]
[345310008,1734144671612,-500.0,0.00021249,3]
[345310009,1734144671621,-500.0,0.00021249,3]
[345310010,1734144671630,-570.54661944,0.00021249,3]
[345310011,1734144671640,-500.0,0.00021249,3]
[345310012,1734144671650,-518.25,0.00021249,3]
[345310013,1734144671659,-1045.6,0.00021249,3]
[345310014,1734144671668,-1045.6,0.00021249,3]
[345310015,1734144671677,-1045.6,0.00021249,3]
[345310016,1734144671687,-1045.6,0.00021249,3]
[345310017,1734144671696,-1045.6,0.00021249,3]
[345310018,1734144671705,-1045.6,0.00021249,3]
[345310019,1734144671714,-1045.66857133,0.00021249,3]
[345310020,1734144671723,-626.01,0.00021249,3]
[345310021,1734144671732,-626.01,0.00021249,3]
[345310022,1734144671742,-626.01,0.00021249,3]
[345310023,1734144671752,-626.01,0.00021249,3]
[345310024,1734144671763,-626.01,0.00021249,3]
[345310025,1734144671772,-626.01,0.00021249,3]
[345310026,1734144671782,-626.22695192,0.00021249,3]
[345310027,1734144671791,-801.67,0.00021249,3]
[345310028,1734144671802,-801.67,0.00021249,3]
[345310029,1734144671811,-801.67,0.00021249,3]
[345310030,1734144671821,-801.67,0.00021249,3]
[345310031,1734144671831,-801.67,0.00021249,3]
[345310032,1734144671841,-801.67,0.00021249,3]
[345310033,1734144671850,-801.75,0.00021249,3]
[345310034,1734144671860,-500.0,0.00021249,3]
[345310035,1734144671869,-500.0,0.00021249,3]
[345310036,1734144671879,-239.5,0.00021249,3]
[345310037,1734144671888,-500.0,0.00021249,3]
[345310038,1734144671897,-500.0,0.00021249,3]
[345310039,1734144671906,-500.0,0.00021249,3]
[345310040,1734144671916,-500.0,0.00021249,3]
[345310041,1734144671926,-500.0,0.00021249,3]
[345310042,1734144671936,-534.82,0.00021249,3]
[345310043,1734144671945,-500.0,0.00021249,3]
[345310044,1734144671955,-500.0,0.00021249,3]
[345310045,1734144671964,-500.0,0.00021249,3]
[345310046,1734144671974,-500.0,0.00021249,3]
[345310047,1734144671983,-159.94576083,0.00021249,3]
[345310048,1734144671993,-501.32,0.00021249,3]
[345310049,1734144672003,-501.32,0.00021249,3]
[345310050,1734144672013,-501.32,0.00021249,3]
[345310051,1734144672022,-501.32,0.00021249,3]
[345310052,1734144672032,-501.32,0.00021249,3]
[345310053,1734144672042,-501.32,0.00021249,3]
[345310054,1734144672052,-501.35652574,0.00021249,3]
[345310055,1734144672062,-8222.23510632,0.0002125,2]
[345310056,1734144672072,-9267.3291504,0.0002125,2]
[345310057,1734144672083,-19047376.83509402,0.0002125,2]
[345310058,1734144672093,-47328.97784261,0.0002125,5]
[345310059,1734144672103,-13791243.92900641,0.0002125,2]
[345310060,1734144672547,-3410392.04757176,0.0002125,2]
[345310061,1734144672596,-553.12399616,0.0002125,2]
[345310062,1734144672608,-399.7100002,0.0002125,2]
[345310063,1734144672619,-9096.64373114,0.0002125,2]
[345310064,1734144672630,-8947.21879473,0.0002125,2]
[345310065,1734144672642,-8943.78386462,0.0002125,2]
[345310066,1734144672653,-9077.54866152,0.0002125,2]
[345310067,1734144672665,-8943.84023489,0.0002125,2]
[345310068,1734144672677,-977.68215516,0.0002125,2]
[345310069,1734144672987,-500.0,0.00021095,3]
[345310070,1734144672997,-500.0,0.00021095,3]
[345310071,1734144673007,-500.0,0.00021197,3]
[345310072,1734144673016,-500.0,0.00021198,3]
[345310073,1734144673026,-201.72053682,0.00021198,3]
[345310074,1734144673038,-298.27946318,0.00021198,3]
[345310075,1734144673047,-1174.72013482,0.0002125,2]
[345310076,1734144673069,-167.75,0.00021198,3]
[345310077,1734144673078,-2553.64998674,0.0002125,2]
[345310078,1734145128115,152.28,0.00010137,2]
[345310080,1734145539092,-157.46904516,0.00014281,7]
[345310081,1734145539113,-30.44290327,0.00016438,2]
[345310082,1734145653092,-4567.43421722,0.00014281,7]
[345310083,1734145653116,-121.79466073,0.00016438,2]
[345310084,1734145653139,-54.71106544,0.00016438,2]
[345310085,1734145653170,-103.57577256,0.00016438,2]
[345310086,1734145653191,-151.590925,0.00016438,2]
[345310087,1734145653218,-158.286838,0.00016716,2]
[345310088,1734145653240,-151.590925,0.00016716,2]
[345310089,1734145653262,-158.286838,0.0001699,2]
[345310090,1734145653284,-151.590925,0.0001699,2]
[345310091,1734145653307,-324.35354821,0.00017464,2]
[345310092,1734145746097,-9974.62064275,0.00014281,7]
[345310097,1734145832077,-157.82645179,0.00017464,2]
[345310098,1734145832087,-158.286838,0.00017533,2]
[345310099,1734145832096,-151.590925,0.00017533,2]
[345310100,1734145832106,-158.286838,0.00017807,2]
[345310101,1734145832115,-151.590925,0.00017807,2]
[345310102,1734145832124,-158.286838,0.00018082,2]
[345310103,1734145832133,-151.590925,0.00018082,2]
[345310104,1734145832142,-152.237564,0.00018355,2]
[345310105,1734145832152,-158.286838,0.00018356,2]
[345310106,1734145832161,-151.590925,0.00018356,2]
[345310107,1734145832170,-158.286838,0.00018903,2]
[345310108,1734145832180,-151.590925,0.00018903,2]
[345310109,1734145832190,-2725.51,0.0001892,2]
[345310110,1734145832199,-322.51944185,0.00018948,2]
[345310111,1734145832326,-1792.7311311,0.00018948,2]
[345310112,1734145832338,-552.88838374,0.00018948,2]
[345310113,1734145832349,-5106.56509926,0.00018948,2]
[345310122,1734145838050,-1425.49319997,0.00018948,2]
[345310123,1734145838062,-7449.79274408,0.00018948,2]
[345310124,1734145838071,-382.32,0.0001897,2]
[345310125,1734145838081,-4831.62,0.00018986,2]
[345310126,1734145838091,-338.31,0.00019015,2]
[345310127,1734145838100,-1462.17,0.00019038,2]
[345310128,1734145838110,-250.0,0.00019042,2]
[345310129,1734145838120,-200.0,0.00019045,2]
[345310130,1734145838129,-150.99346435,0.0001911,2]
[345310131,1734145838138,-500.0,0.00019119,2]
[345310132,1734145838147,-175.0,0.00019165,2]
[345310133,1734145838157,-158.286838,0.00019178,2]
[345310134,1734145838166,-151.590925,0.00019178,2]
[345310135,1734145838176,-175.0,0.00019189,2]
[345310136,1734145838185,-221.59,0.00019194,2]
[345310137,1734145838194,-175.0,0.00019213,2]
[345310138,1734145838204,-175.0,0.00019237,2]
[345310139,1734145838213,-175.0,0.00019261,2]
[345310140,1734145838222,-164.01,0.00019276,30]
[345310141,1734145838231,-233.32,0.0001958,2]
[345310142,1734145838240,-250.0,0.0001958,2]
[345310143,1734145838249,-1000.0,0.0001958,2]
[345310144,1734145838259,-300.0,0.0001958,2]
[345310145,1734145838271,-158.286838,0.00019726,2]
[345310146,1734145838280,-151.590925,0.00019726,2]
[345310147,1734145838290,-482.18,0.00019728,2]
[345310148,1734145838299,-5717.26,0.00019736,2]
[345310149,1734145838309,-1462.17,0.0001999,2]
[345310150,1734145838319,-10000.0,0.0002,3]
[345310151,1734145838329,-10000.0,0.0002,4]
[345310152,1734145838338,-10000.0,0.0002,2]
[345310153,1734145838349,-435.56,0.00020125,2]
[345310154,1734145838358,-364.52,0.00020125,2]
[345310155,1734145838368,-364.52,0.00020125,2]
[345310156,1734145838377,-435.56,0.00020125,2]
[345310157,1734145838387,-318.04,0.0002019,2]
[345310158,1734145838397,-7451.0,0.000202,5]
[345310159,1734145838407,-7470.89243641,0.00020205,2]
[345310160,1734145838417,-683.83,0.00020239,2]
[345310161,1734145838426,-949.73,0.00020261,2]
[345310162,1734145838435,-158.286838,0.00020273,2]
[345310163,1734145838445,-151.590925,0.00020273,2]
[345310164,1734145838455,-302.72,0.00020278,2]
[345310165,1734145838465,-150.0,0.00020278,2]
[345310166,1734145838475,-395.5,0.00020278,2]
[345310167,1734145838485,-150.0,0.00020278,2]
[345310168,1734145838494,-533.1,0.00020278,2]
[345310169,1734145838504,-300.57,0.00020278,2]
[345310170,1734145838513,-10000.0,0.000203,6]
[345310171,1734145838524,-233.32,0.00020304,2]
[345310172,1734145838534,-10000.0,0.000204,7]
[345310173,1734145838543,-10000.0,0.000205,8]
[345310174,1734145838552,-10000.0,0.000205,9]
[345310175,1734145838564,-10000.0,0.000205,10]
[345310176,1734145838573,-10000.0,0.000206,12]
[345310177,1734145838583,-160.18851982,0.000206,2]
[345310178,1734145838592,-10000.0,0.000207,13]
[345310179,1734145838603,-152.28,0.00020708,2]
[345310181,1734145838612,-10000.0,0.000208,13]
[345310183,1734145838622,-3879.0,0.00020871,2]
[345310185,1734145838631,-150.0,0.00020871,2]
[345310187,1734145838641,-1029.557,0.00020871,2]
[345310189,1734145838651,-160.18851982,0.00020875,2]
[345310192,1734145838660,-863.1170047,0.00020888,2]
[345310194,1734145838670,-10000.0,0.000209,14]
[345310196,1734145838679,-863.1170047,0.00020908,2]
[345310198,1734145838689,-863.1170047,0.00020908,2]
[345310200,1734145838698,-863.1170047,0.00020915,2]
[345310202,1734145838707,-863.1170047,0.00020925,2]
[345310203,1734145838716,-863.1170047,0.00020941,2]
[345310204,1734145838725,-1462.17,0.00020942,2]
[345310205,1734145838734,-435.56,0.00020947,2]
[345310206,1734145838742,-975.55,0.00020947,2]
[345310207,1734145838751,-441.51,0.00020947,2]
[345310208,1734145838760,-1949.25,0.00020947,2]
[345310209,1734145838771,-975.36,0.00020947,2]
[345310210,1734145838780,-975.36,0.00020947,2]
[345310211,1734145838792,-1669.78,0.00020947,2]
[345310212,1734145838802,-975.36,0.00020947,2]
[345310213,1734145838811,-1108.0361,0.00020995,2]
[345310214,1734145838820,-10000.0,0.00021,5]
[345310216,1734145838829,-10000.0,0.00021,6]
[345310218,1734145838838,-10000.0,0.00021,7]
[345310220,1734145838848,-606.0,0.00021,2]
[345310222,1734145838857,-233.32,0.00021029,2]
[345310224,1734145838866,-483.0,0.00021037,2]
[345310226,1734145838876,-3000.0,0.0002104,2]
[345310227,1734145838885,-908.0995,0.00021049,2]
[345310228,1734145838895,-30025.98523265,0.0002105,2]
[345310229,1734145838905,-500.0,0.00021095,3]
[345310230,1734145838914,-500.0,0.00021095,3]
[345310231,1734145838924,-500.0,0.00021095,3]
[345310232,1734145838933,-500.0,0.00021095,3]
[345310233,1734145838943,-424.11,0.00021095,3]
[345310234,1734145838952,-320.41304586,0.00021095,3]
[345310235,1734145838962,-500.0,0.00021095,3]
[345310236,1734145838973,-500.0,0.00021095,3]
[345310237,1734145838983,-162.30779043,0.00021095,3]
[345310238,1734145838993,-500.0,0.00021095,3]
[345310239,1734145839002,-500.0,0.00021095,3]
[345310240,1734145839011,-500.0,0.00021095,3]
[345310241,1734145839022,-500.0,0.00021095,3]
[345310242,1734145839032,-504.01321091,0.00021095,3]
[345310243,1734145839042,-631.83,0.00021095,3]
[345310244,1734145839051,-500.0,0.00021095,3]
[345310245,1734145839060,-632.03,0.00021095,3]
[345310246,1734145839069,-500.0,0.00021095,3]
[345310247,1734145839079,-500.0,0.00021095,3]
[345310248,1734145839088,-500.0,0.00021095,3]
[345310249,1734145839097,-327.43066192,0.00021095,3]
[345310250,1734145839106,-500.0,0.00021095,3]
[345310251,1734145839115,-500.0,0.00021095,3]
[345310252,1734145839126,-500.0,0.00021095,3]
[345310253,1734145839135,-500.0,0.00021095,3]
[345310254,1734145839145,-226.63222746,0.00021095,3]
[345310255,1734145839155,-500.0,0.00021095,3]
[345310256,1734145839164,-500.0,0.00021095,3]
[345310257,1734145839174,-153.27,0.00021095,3]
[345310258,1734145839183,-512.58940817,0.00021095,3]
[345310259,1734145839192,-500.0,0.00021095,3]
[345310260,1734145839201,-500.0,0.00021095,3]
[345310261,1734145839210,-500.0,0.00021095,3]
[345310262,1734145839219,-500.0,0.00021095,3]
[345310263,1734145839228,-500.0,0.00021095,3]
[345310264,1734145839238,-500.0,0.00021095,3]
[345310265,1734145839248,-500.0,0.00021095,3]
[345310266,1734145839257,-568.38,0.00021095,3]
[345310267,1734145839267,-500.0,0.00021095,3]
[345310268,1734145839276,-500.0,0.00021095,3]
[345310269,1734145839286,-500.0,0.00021095,3]
[345310270,1734145839295,-500.0,0.00021095,3]
[345310271,1734145839305,-500.0,0.00021095,3]
[345310272,1734145839315,-500.0,0.00021095,3]
[345310273,1734145839325,-500.0,0.00021095,3]
[345310274,1734145839334,-500.0,0.00021095,3]
[345310275,1734145839344,-500.0,0.00021095,3]
[345310276,1734145839354,-500.0,0.00021095,3]
[345310277,1734145839364,-647.22441829,0.00021095,3]
[345310278,1734145839374,-500.0,0.00021095,3]
[345310279,1734145839383,-500.0,0.00021095,3]
[345310280,1734145839393,-500.0,0.00021095,3]
[345310281,1734145839403,-500.0,0.00021095,3]
[345310282,1734145839413,-500.0,0.00021095,3]
[345310283,1734145839422,-500.0,0.00021095,3]
[345310284,1734145839431,-500.0,0.00021095,3]
[345310285,1734145839441,-500.0,0.00021095,3]
[345310286,1734145839450,-500.0,0.00021095,3]
[345310287,1734145839460,-500.0,0.00021095,3]
[345310288,1734145839469,-500.0,0.00021095,3]
[345310289,1734145839479,-500.0,0.00021095,3]
[345310290,1734145839488,-500.0,0.00021095,3]
[345310291,1734145839497,-500.0,0.00021095,3]
[345310292,1734145839506,-500.0,0.00021095,3]
[345310293,1734145839515,-500.0,0.00021095,3]
[345310294,1734145839525,-500.0,0.00021095,3]
[345310295,1734145839535,-477.89397848,0.00021095,3]
[345310296,1734145839548,-500.0,0.00021095,3]
[345310297,1734145839559,-500.0,0.00021095,3]
[345310298,1734145839572,-500.0,0.00021095,3]
[345310299,1734145839584,-500.0,0.00021095,3]
[345310300,1734145839596,-500.0,0.00021095,3]
[345310301,1734145839607,-500.0,0.00021095,3]
[345310302,1734145839618,-500.0,0.00021095,3]
[345310303,1734145839629,-500.0,0.00021095,3]
[345310304,1734145839642,-500.0,0.00021095,3]
[345310305,1734145839652,-500.0,0.00021095,3]
[345310306,1734145839662,-500.0,0.00021095,3]
[345310307,1734145839672,-501.14010447,0.00021095,3]
[345310308,1734145839682,-500.0,0.00021095,3]
[345310309,1734145839692,-500.0,0.00021095,3]
[345310310,1734145839702,-500.0,0.00021095,3]
[345310311,1734145839713,-500.0,0.00021095,3]
[345310312,1734145839723,-500.0,0.00021095,3]
[345310313,1734145839734,-500.0,0.00021095,3]
[345310314,1734145839744,-500.0,0.00021095,3]
[345310315,1734145839755,-500.0,0.00021095,3]
[345310316,1734145839766,-500.0,0.00021095,3]
[345310317,1734145839777,-500.0,0.00021095,3]
[345310318,1734145839788,-578.19,0.00021095,3]
[345310319,1734145839798,-500.0,0.00021095,3]
[345310321,1734145839809,-500.0,0.00021095,3]
[345310323,1734145839820,-500.0,0.00021095,3]
[345310324,1734145839831,-500.0,0.00021095,3]
[345310325,1734145839842,-500.0,0.00021095,3]
[345310326,1734145839853,-500.0,0.00021095,3]
[345310327,1734145839864,-645.68931803,0.00021095,3]
[345310328,1734145839875,-500.0,0.00021095,3]
[345310329,1734145839886,-500.0,0.00021095,3]
[345310330,1734145839896,-500.0,0.00021095,3]
[345310331,1734145839906,-500.0,0.00021095,3]
[345310332,1734145839917,-500.0,0.00021095,3]
[345310333,1734145839928,-500.0,0.00021095,3]
[345310334,1734145839938,-500.0,0.00021095,3]
[345310335,1734145839948,-500.0,0.00021095,3]
[345310336,1734145839958,-418.7800633,0.00021095,3]
[345310337,1734145839968,-500.0,0.00021095,3]
[345310338,1734145839978,-500.0,0.00021095,3]
[345310339,1734145839987,-500.0,0.00021095,3]
[345310340,1734145839998,-500.0,0.00021095,3]
[345310341,1734145840009,-500.0,0.00021095,3]
[345310342,1734145840020,-500.0,0.00021095,3]
[345310343,1734145840031,-500.0,0.00021095,3]
[345310344,1734145840041,-500.0,0.00021095,3]
[345310345,1734145840051,-500.0,0.00021095,3]
[345310346,1734145840063,-500.0,0.00021095,3]
[345310347,1734145840073,-500.0,0.00021095,3]
[345310348,1734145840083,-288.49910378,0.00021095,3]
[345310349,1734145840095,-500.0,0.00021095,3]
[345310350,1734145840106,-500.0,0.00021095,3]
[345310351,1734145840117,-500.0,0.00021095,3]
[345310352,1734145840128,-500.0,0.00021095,3]
[345310353,1734145840138,-500.0,0.00021095,3]
[345310354,1734145840149,-500.0,0.00021095,3]
[345310355,1734145840160,-500.0,0.00021095,3]
[345310356,1734145840171,-500.0,0.00021095,3]
[345310357,1734145840182,-500.0,0.00021095,3]
[345310358,1734145840193,-500.0,0.00021095,3]
[345310359,1734145840203,-500.0,0.00021095,3]
[345310360,1734145840214,-500.0,0.00021095,3]
[345310361,1734145840225,-500.0,0.00021095,3]
[345310362,1734145840235,-500.0,0.00021095,3]
[345310363,1734145840245,-500.0,0.00021095,3]
[345310364,1734145840256,-500.0,0.00021095,3]
[345310365,1734145840267,-500.0,0.00021095,3]
[345310366,1734145840277,-500.0,0.00021095,3]
[345310367,1734145840289,-500.0,0.00021095,3]
[345310368,1734145840299,-249.85175651,0.00021095,3]
[345310369,1734145840310,-500.0,0.00021095,3]
[345310370,1734145840321,-500.0,0.00021095,3]
[345310371,1734145840332,-500.0,0.00021095,3]
[345310372,1734145840342,-500.0,0.00021095,3]
[345310373,1734145840353,-500.0,0.00021095,3]
[345310375,1734145840363,-500.0,0.00021095,3]
[345310377,1734145840373,-337.02945705,0.00021095,3]
[345310378,1734145840384,-500.0,0.00021095,3]
[345310379,1734145840394,-500.0,0.00021095,3]
[345310380,1734145840405,-10000.0,0.000211,15]
[345310381,1734145840415,-2046.611,0.00021149,2]
[345310382,1734145840425,-160.18851982,0.0002115,2]
[345310383,1734145840436,-500.0,0.00021196,3]
[345310384,1734145840447,-500.0,0.00021196,3]
[345310385,1734145840457,-152.85320163,0.00021196,3]
[345310386,1734145840467,-500.0,0.00021196,3]
[345310387,1734145840478,-500.0,0.00021196,3]
[345310388,1734145840488,-500.0,0.00021196,3]
[345310389,1734145840498,-500.0,0.00021196,3]
[345310390,1734145840508,-500.0,0.00021197,3]
[345310391,1734145840520,-500.0,0.00021197,3]
[345310392,1734145840531,-239.5,0.00021197,3]
[345310393,1734145840542,-500.0,0.00021197,3]
[345310394,1734145840552,-500.0,0.00021197,3]
[345310395,1734145840564,-500.0,0.00021197,3]
[345310396,1734145840575,-500.0,0.00021197,3]
[345310397,1734145840585,-500.0,0.00021197,3]
[345310398,1734145840595,-570.54661944,0.00021197,3]
[345310399,1734145840607,-500.0,0.00021197,3]
[345310400,1734145840617,-481.6,0.00021197,3]
[345310401,1734145840627,-500.0,0.00021197,3]
[345310402,1734145840638,-500.0,0.00021197,3]
[345310403,1734145840650,-500.0,0.00021197,3]
[345310404,1734145840660,-500.0,0.00021197,3]
[345310405,1734145840670,-500.0,0.00021197,3]
[345310406,1734145840681,-500.0,0.00021197,3]
[345310407,1734145840692,-500.0,0.00021197,3]
[345310408,1734145840702,-500.0,0.00021198,3]
[345310409,1734145840712,-430.54,0.00021198,3]
[345310410,1734145840722,-500.0,0.00021198,3]
[345310411,1734145840733,-500.0,0.00021198,3]
[345310412,1734145840744,-500.0,0.00021198,3]
[345310413,1734145840755,-500.0,0.00021198,3]
[345310414,1734145840767,-500.0,0.00021198,3]
[345310415,1734145840779,-500.0,0.00021198,3]
[345310416,1734145840790,-159.94576083,0.00021198,3]
[345310417,1734145840802,-500.0,0.00021198,3]
[345310418,1734145840813,-500.0,0.00021198,3]
[345310419,1734145840824,-500.0,0.00021198,3]
[345310420,1734145840834,-500.0,0.00021198,3]
[345310421,1734145840843,-500.0,0.00021198,3]
[345310422,1734145840854,-500.0,0.00021198,3]
[345310423,1734145840865,-500.0,0.00021198,3]
[345310424,1734145840875,-500.0,0.00021198,3]
[345310425,1734145840885,-314.16,0.00021198,3]
[345310426,1734145840897,-548.95497835,0.00021198,3]
[345310427,1734145840908,-443.37,0.00021198,3]
[345310428,1734145840919,-500.0,0.00021198,3]
[345310429,1734145840929,-500.0,0.00021198,3]
[345310430,1734145840941,-500.0,0.00021198,3]
[345310431,1734145840952,-509.27652574,0.00021198,3]
[345310432,1734145840965,-500.0,0.00021198,3]
[345310433,1734145840976,-500.0,0.00021198,3]
[345310434,1734145840986,-500.0,0.00021198,3]
[345310435,1734145840997,-500.0,0.00021198,3]
[345310436,1734145841007,-500.0,0.00021198,3]
[345310437,1734145841017,-500.0,0.00021198,3]
[345310438,1734145841028,-500.0,0.00021198,3]
[345310439,1734145841039,-500.0,0.00021198,3]
[345310440,1734145841050,-500.0,0.00021198,3]
[345310441,1734145841060,-500.0,0.00021198,3]
[345310442,1734145841070,-500.0,0.00021198,3]
[345310443,1734145841080,-500.0,0.00021198,3]